[Event "15th Chennai GM Open 2025"]
[Site "Chennai"]
[Date "2025.01.02"]
[Round "1.15"]
[White "Abhishek T M"]
[Black "Sammed Jaykumar, Shete"]
[Result "0-1"]
[ECO "B31"]
[WhiteElo "2050"]
[BlackElo "2379"]
[Annotator "TA"]
[PlyCount "54"]
[EventDate "2025.01.02"]
[EventType "swiss"]
[EventCountry "IND"]
[SourceTitle "playchess.com"]
[Source "ChessBase"]
[SourceQuality "1"]
[TimeControl "5400+30"]

{[%evp 10,54,19,0,14,-10,0,0,20,-48,-50,-58,-42,-55,-71,-70,-72,-133,-110,-288,-284,-284,-243,-291,-284,-294,-293,-425,-420,-589,-556,-812,-793,-1581,-1573,-1583,-1570,-1513,-1481,-29991,-29975,-5569,-5465,-29971,17,-1402,-1319]} 1. e4 {[%emt 0:00:06]} c5 {[%emt 0:00:14]} 2. Nf3 {[%emt 0:00:12]} Nc6 {[%emt 0:00:06]} 3. Bb5 {[%emt 0:00:23]} g6 {[%emt 0:00:30]} 4. Bxc6 {[%emt 0:00:52]} bxc6 {[%emt 0:00:35]} 5. O-O {[%emt 0:09:16]} Bg7 {[%emt 0:00:21]} 6. d3 {[%emt 0:05:40]} e5 {[%emt 0:01:43]} 7. Be3 {[%emt 0:06:17]} d6 {[%emt 0:00:52]} 8. c3 {[%emt 0:03:36]} Rb8 {[%emt 0:05:33][%cal Of7f5] The position is equal.} 9. Qc1 {[%emt 0:06:44]} (9. d4 $11) 9... f5 $15 {[%emt 0:01:51]} 10. exf5 {[%emt 0:06:45]} gxf5 {[%emt 0:00:55]} 11. d4 {[%emt 0:03:20] dxe5 would now be deadly.} f4 {[%emt 0:14:25]} 12. Bd2 {[%emt 0:03:10]} Bg4 $36 {[%emt 0:00:12][%mdl 2048] Black is on the roll.} (12... exd4 $6 13. Bxf4 Ne7 14. Bh6 $16) (12... cxd4 $6 13. cxd4 Bg4 14. dxe5 $14 (14. Qxc6+ Qd7 $11)) 13. dxe5 {[%emt 0:05:49]} (13. Na3 $142) 13... Bxf3 $17 {[%emt 0:00:07]} (13... dxe5 $2 14. Nxe5 Bxe5 15. Re1 $18) 14. gxf3 $2 {[%emt 0:04:19]} (14. Bxf4 $17 {was forced.} dxe5 15. Bg5) 14... Qg5+ $19 {[%emt 0:00:25]} (14... dxe5 15. c4 $11) (14... Bxe5 15. Bxf4 Bxf4 16. Qxf4 $11) 15. Kh1 {[%emt 0:00:58] aiming for Rg1.} Bxe5 {[%emt 0:02:13] White must now prevent ...Nf6.} 16. Na3 {[%emt 0:04:23]} Qh5 {[%emt 0:24:13]} 17. Qd1 {[%emt 0:01:31] [#]} d5 {[%emt 0:07:30][%cal Og8f6] Dodges Nc4} (17... Rxb2 18. Nc4 Rb5 19. a4 $11) 18. Re1 {[%emt 0:12:19]} (18. Rg1 {is a better defense.} Rxb2 19. Nc2) 18... Kf7 {[%emt 0:06:33]} (18... Rxb2 $2 19. Bxf4 Ne7 20. Rxe5 $18) 19. Qe2 {[%emt 0:14:55] [#]} (19. Rb1 {was necessary.} Nf6 20. Rxe5 Qxe5 21. Qa4) 19... Nf6 $1 {[%emt 0:01:45]} 20. Bxf4 {[%emt 0:07:14] [#]} (20. Rg1 Rxb2) 20... Rxb2 $3 {[%emt 0:00:11][%mdl 512] Active counter play!} 21. Qxb2 {[%emt 0:00:50]} (21. Nc2 Rxc2) 21... Qxf3+ {[%emt 0:00:13]} 22. Kg1 {[%emt 0:00:07]} Bxf4 {[%emt 0:00:07]} 23. Qb7+ {[%emt 0:00:48]} Kg6 {[%emt 0:00:06] ( -> ...Rg8)} 24. Qxc6 {[%emt 0:01:08]} Rg8 {[%emt 0:00:50]} 25. Qe6 {[%emt 0:01:10]} Kh5+ {[%emt 0:01:29]} 26. Kf1 {[%emt 0:00:05]} Qg2+ {[%emt 0:00:06]} ({Not} 26... Qxc3 27. Nb5 Qf3 28. Qe2 (28. Qxf6 $2 {is a self mate.} Qd3+ 29. Re2 Qh3+ 30. Ke1 Rg1#) 28... Qxe2+ 29. Kxe2 $11) (26... Ng4 $142 27. Qf5+ Kh4 28. Qxh7+ Bh6 29. Qxh6+ Nxh6 30. Re3 Qh1+ 31. Ke2 Qxa1 32. Nc2 Qc1 (32... Qxa2 $2 33. Kd2 $19) 33. Ne1 Nf5 (33... Qb2+ $2 34. Kd1 $19) 34. Re6 Qxc3 (34... Qb2+ {leads to mate.} 35. Kd1 Qxc3 36. Re2 Rg4 37. Re6 Rd4+ 38. Ke2 Qc4+ 39. Kf3 Rf4+ 40. Kg2 Rg4+ 41. Kf3 Nd4+ 42. Ke3 Qe2#) 35. Nf3+ Kg4 36. Ne5+ Kh3 37. Nf3 c4 38. Ne1 Nd4+ (38... Kxh2 39. Nf3+ Kh3 40. Kd1 Qxf3+ 41. Kc2 Qd3+ 42. Kb2 Rb8+ 43. Rb6 Rxb6+ 44. Kc1 Rb1#) 39. Kd1 Nxe6 (39... Qa1+ 40. Kd2 Qb2+ 41. Ke3 Nxe6 42. f4 Rg2 43. Nxg2 Kxg2 44. h4 Qf2#) 40. Ke2 Nd4+ (40... Kxh2 41. Nf3+ Kh3 42. Ne1 Nd4+ 43. Kd1 Re8 44. f4 Rxe1#) (40... Rg1 $2 41. f4 Rxe1+ 42. Kf2 Qe3#) 41. Kd1 Rg1 42. f4 Rxe1#) 27. Ke2 {[%emt 0:00:05] Strongly threatening Rg1.} Re8 {[%emt 0:00:03] White got outplayed after the opening.   Weighted Error Value: White=1.25/Black=0.20 (precise) .  Loses game:     	White=1     	---        Mistake:       	White=4     	---        Inaccurate:     	White=2     	---        OK:         	White=4     	Black=2      Best:        	---       	Black=9      Brilliant:      	---       	Black=1} 0-1

[Event "15th Chennai GM Open 2025"]
[Site "Chennai"]
[Date "2025.01.03"]
[Round "2.1"]
[White "Aronyak Ghosh"]
[Black "Aditya Varun Gampa"]
[Result "1-0"]
[ECO "D02"]
[WhiteElo "2544"]
[BlackElo "2180"]
[Annotator "TA"]
[PlyCount "57"]
[EventDate "2025.01.02"]
[EventType "swiss"]
[EventCountry "IND"]
[SourceTitle "playchess.com"]
[Source "ChessBase"]
[SourceQuality "1"]
[TimeControl "5400+30"]

{[%evp 9,57,0,6,8,2,6,7,7,31,45,37,21,100,106,151,147,147,136,185,179,211,195,214,129,129,135,196,197,247,197,179,168,193,192,193,181,297,309,293,304,669,644,5519,5402,29991,6311,29990,6175,5377,2581]} 1. d4 {[%emt 0:05:21]} Nf6 {[%emt 0:00:24]} 2. Bf4 {[%emt 0:00:31]} d5 {[%emt 0:00:30]} 3. e3 {[%emt 0:00:07]} e6 {[%emt 0:00:40]} 4. Nf3 {[%emt 0:01:03]} Bd6 {[%emt 0:01:22]} 5. Bg3 {[%emt 0:00:20]} O-O {[%emt 0:00:32]} 6. c4 {[%emt 0:00:34]} Bxg3 {[%emt 0:12:57]} 7. hxg3 {[%emt 0:00:14][%cal Bh2g3,Bg3g4,Bg4g5][%mdl 32]} dxc4 {[%emt 0:01:39]} 8. Bxc4 {[%emt 0:02:50]} Nbd7 {[%emt 0:03:40]} 9. Rh4 {[%emt 0:08:54]} c5 {[%emt 0:09:09]} 10. g4 {[%emt 0:01:45]} g6 {[%emt 0:11:40]} (10... b5 $11 {keeps the balance.} 11. Bxb5 Qa5+ 12. Nc3 Rb8) 11. g5 $16 {[%emt 0:05:21]} Ne8 {[%emt 0:00:09]} 12. dxc5 {[%emt 0:08:00]} Qe7 {[%emt 0:00:29] Black is weak on the dark squares} 13. Nc3 {[%emt 0:01:14] White has more active pieces.} (13. b4 $6 a5 $11) 13... Nxc5 {[%emt 0:00:20]} (13... Qxc5 $16 14. Qd4 a6 15. Qxc5 Nxc5) 14. Qd4 $18 {[%emt 0:00:39]} b5 {[%emt 0:10:59]} 15. Bxb5 {[%emt 0:02:48]} (15. Nxb5 $6 a6) 15... Bb7 {[%emt 0:01:45]} 16. O-O-O {[%emt 0:05:11][%cal Oh4h7,Ba1d1,Bd1d5,Bd5c5][%mdl 32] and Rxh7! would now be decisive} Bxf3 {[%emt 0:06:58]} 17. gxf3 {[%emt 0:00:24][%cal Oh4h7]} Ng7 {[%emt 0:03:04]} (17... Qxg5 $16 18. Rxh7 Nf6 (18... Kxh7 $2 {too greedy.} 19. Rh1+ $18)) 18. Qe5 $40 {[%emt 0:14:01][%mdl 128] Black is in trouble.} Rfd8 {[%emt 0:04:48] [#] Dodges Nd5} (18... Rad8 {is a better defense.} 19. Rhd4 (19. Nd5 Rxd5 20. Rxd5 Nf5 $16) 19... Rc8) 19. Nd5 $1 {[%emt 0:04:57][%mdl 512]} Rxd5 {[%emt 0:01:03]} 20. Rxd5 {[%emt 0:00:05]} Nf5 {[%emt 0:01:11]} 21. Rxc5 {[%emt 0:03:36]} Nxh4 {[%emt 0:00:06]} 22. f4 {[%emt 0:00:34]} a6 {[%emt 0:04:48] [#]} (22... Qf8 $142 23. Bc6 Rd8) 23. Bxa6 $1 {[%emt 0:02:23][%mdl 512]} Qa7 {[%emt 0:11:52]} 24. Bc4 {[%emt 0:03:18]} Qb7 $2 {[%emt 0:00:35] [#]} (24... Nf5 25. a3 Qb7) 25. Bxe6 $1 {[%emt 0:05:14]} Qh1+ {[%emt 0:06:04]} (25... Qe7 26. Bc4) 26. Kc2 {[%emt 0:00:12][%cal Oe6f7] Bxf7+! would kill now.} Nf5 {[%emt 0:03:07]} 27. Bd5 {[%emt 0:03:08]} (27. Bxf7+ $142 Kf8 28. Rc7 Nxe3+ 29. fxe3 (29. Qxe3 Qc6+ 30. Rxc6 h5 31. gxh6 Kxf7 32. Rc7+ Kf8 33. Qe7+ Kg8 34. Qg7#) 29... Qh2+ 30. Kc3 Qd2+ 31. Kxd2 Rd8+ 32. Kc3 Rd3+ 33. Kxd3 h5 34. Qh8#) 27... Qe1 {[%emt 0:00:07]} 28. Bxa8 {[%emt 0:03:02]} (28. Bxf7+ $142 Kf8 29. Qh8+ Kxf7 30. Rc7+ (30. Qxa8 Qxf2+ 31. Kb1 Qf1+ 32. Rc1 Qd3+ 33. Ka1 Qxe3 $18) 30... Ne7 31. Qxh7+ (31. Qxa8 Qxf2+ 32. Kd3 Qf1+ 33. Kd4 Qb5 $18) 31... Ke6 32. Qxe7+ Kf5 33. Qd7+ Ke4 34. Qc6+ Kf5 35. Rf7+ (35. Qxa8 Qxf2+ 36. Kb1 Qf1+ 37. Rc1 Qd3+ 38. Ka1 Qxe3 $18) (35. Qd7+ Ke4 36. Qc6+ Kf5 37. Rf7+ Kg4 38. Qg2+ Kh5 39. Rh7#) 35... Kg4 36. Qg2+ Kh5 37. Rh7#) 28... Qe2+ {[%emt 0:00:08]} 29. Kb3 {[%emt 0:00:57]} 1-0

[Event "15th Chennai GM Open 2025"]
[Site "Chennai"]
[Date "2025.01.03"]
[Round "2.2"]
[White "Barath Kalyan M"]
[Black "Siddharth, Jagadeesh"]
[Result "0-1"]
[ECO "E17"]
[WhiteElo "2186"]
[BlackElo "2515"]
[Annotator "TA"]
[PlyCount "128"]
[EventDate "2025.01.02"]
[EventType "swiss"]
[EventCountry "IND"]
[SourceTitle "playchess.com"]
[Source "ChessBase"]
[SourceQuality "1"]
[TimeControl "5400+30"]

{[%evp 22,128,1,4,10,7,4,9,6,2,6,6,7,0,0,0,0,0,0,0,0,0,0,0,0,-16,-8,-35,-24,-26,-33,-27,-19,-35,-34,-89,-61,-105,-102,-100,-74,-73,-67,-61,-61,-77,-47,-49,-32,-74,-78,-78,-78,-123,-115,-119,-125,-125,-122,-126,-118,-120,-78,-119,-116,-194,-199,-539,-539,-532,-524,-591,-591,-591,-591,-591,-591,-591,-591,-591,-591,-591,-591,-591,-591,-591,-591,-909,-591,-591,-591,-1142,-1142,-1142,-1142,-1142,-591,-5089,-2186,-29972,-29968,-29984,-5089,-29985,-29986,-29988,-29989,-29994,-29995]} 1. Nf3 {[%emt 0:00:36]} Nf6 {[%emt 0:00:54]} 2. c4 {[%emt 0:00:19]} b6 {[%emt 0:00:43]} 3. g3 {[%emt 0:00:22]} Bb7 {[%emt 0:00:04]} 4. Bg2 {[%emt 0:00:06]} e6 {[%emt 0:00:04]} 5. O-O {[%emt 0:00:55]} Be7 {[%emt 0:00:04]} 6. b3 {[%emt 0:06:54]} O-O {[%emt 0:00:27]} 7. Bb2 {[%emt 0:00:05]} c5 {[%emt 0:00:04]} 8. Nc3 {[%emt 0:00:19]} d5 {[%emt 0:00:06]} 9. cxd5 {[%emt 0:00:26]} Nxd5 {[%emt 0:00:09]} 10. Rc1 {[%emt 0:04:15]} Nd7 {[%emt 0:21:29][%cal Bb8d7,Bd7c5,Bc5e4][%mdl 32]} 11. d4 {[%emt 0:07:05]} Nxc3 {[%emt 0:04:12]} 12. Bxc3 {[%emt 0:01:13]} Rc8 {[%emt 0:00:06]} 13. Bb2 {[%emt 0:04:47]} Bf6 {[%emt 0:03:26]} 14. Qd2 {[%emt 0:04:28]} Qe7 {[%emt 0:00:58]} 15. dxc5 {[%emt 0:01:40]} Nxc5 {[%emt 0:00:09]} 16. Bxf6 {[%emt 0:01:16]} Qxf6 {[%emt 0:00:02]} 17. Qd4 {[%emt 0:01:45]} Rfd8 {[%emt 0:28:14]} 18. Qxf6 {[%emt 0:06:51]} gxf6 {[%emt 0:00:06]} 19. Rfd1 {[%emt 0:00:05]} Rxd1+ {[%emt 0:00:33]} 20. Rxd1 {[%emt 0:00:06]} Ne4 {[%emt 0:00:04]} 21. Ne1 {[%emt 0:13:22] Prevents Rc2} f5 {[%emt 0:00:09]} 22. Bf3 {[%emt 0:11:17]} Ba6 {[%emt 0:04:25]} 23. h4 {[%emt 0:13:12]} Kf8 {[%emt 0:06:32]} 24. Nd3 {[%emt 0:10:54]} Nc3 {[%emt 0:05:08]} 25. Rd2 {[%emt 0:00:47]} Bxd3 {[%emt 0:00:24]} 26. Rxd3 $11 {[%emt 0:00:46][%mdl 4096] Endgame KRB-KRN} Ke7 {[%emt 0:00:02] Dodges Rd7+} 27. Rd2 {[%emt 0:00:55]} b5 {[%emt 0:00:41]} 28. Rc2 {[%emt 0:04:03]} (28. e3 $15) 28... b4 $1 $17 {[%emt 0:01:25]} 29. e3 {[%emt 0:00:49][%cal Oe3e4]} Rc5 {[%emt 0:00:41]} 30. Rd2 {[%emt 0:04:02]} e5 {[%emt 0:00:23]} 31. Bb7 {[%emt 0:00:45]} Rc7 {[%emt 0:06:36]} 32. Ba6 {[%emt 0:00:20]} Rd7 {[%emt 0:00:05]} 33. Rc2 {[%emt 0:00:45]} Rd1+ {[%emt 0:01:41]} 34. Kg2 {[%emt 0:01:06]} Ra1 {[%emt 0:03:14]} 35. a4 {[%emt 0:00:04] [#]} bxa3 $1 {[%emt 0:00:28] Black is more active.} 36. Rxc3 {[%emt 0:00:07] KRB-KR} a2 $1 {[%emt 0:00:03]} 37. Rc2 {[%emt 0:01:16] [#] And now Kf3 would win.} Rg1+ $3 {[%emt 0:00:14][%mdl 512]} 38. Kxg1 {[%emt 0:00:02]} a1=Q+ {[%emt 0:00:08] KQ-KRB} (38... a1=B $2 {perishes.} 39. Rc7+ Ke8 40. Rxa7 $18) 39. Bf1 {[%emt 0:00:03] [#]} f4 $1 {[%emt 0:07:37][%mdl 512]} 40. exf4 {[%emt 0:00:41]} (40. gxf4 exf4) 40... exf4 {[%emt 0:00:01]} 41. gxf4 {[%emt 0:00:57]} a5 {[%emt 0:01:40]} 42. Rc4 {[%emt 0:00:33]} Qf6 {[%emt 0:00:56]} 43. h5 {[%emt 0:00:54] [#] Dodges Qg6+} (43. Rc7+ $17 Kd6 44. Ra7) 43... Qf5 $1 $19 {[%emt 0:00:01]} 44. Be2 $2 {[%emt 0:00:20] [#] Repels Qg4+} (44. Rc3) 44... Qb1+ $1 {[%emt 0:00:07]} 45. Kg2 {[%emt 0:00:41]} Qxb3 {[%emt 0:00:02]} 46. Rc7+ {[%emt 0:00:41]} Kd6 {[%emt 0:00:01]} 47. Ra7 {[%emt 0:00:22]} a4 {[%emt 0:00:08]} 48. h6 {[%emt 0:00:10]} a3 {[%emt 0:00:21]} 49. Bh5 {[%emt 0:00:07]} a2 {[%emt 0:01:26]} 50. Bxf7 {[%emt 0:00:12] [#]} a1=Q $1 {[%emt 0:00:06][%mdl 512]} 51. Rxa1 {[%emt 0:00:13]} Qxf7 {[%emt 0:00:02] KQ-KR} 52. Ra6+ {[%emt 0:01:55]} Kd5 {[%emt 0:00:01]} 53. Kg3 {[%emt 0:00:32]} Qg8+ {[%emt 0:00:11]} 54. Kf3 {[%emt 0:00:07]} Qe8 {[%emt 0:00:02] ( -> ...Qe4+)} 55. Kg3 {[%emt 0:00:43]} Ke4 {[%emt 0:00:49] ( -> ...Qg8+)} 56. Ra5 {[%emt 0:00:27]} Qg6+ {[%emt 0:00:18]} 57. Rg5 {[%emt 0:00:05]} Qxh6 {[%emt 0:00:06]} 58. Re5+ {[%emt 0:00:04]} Kd4 {[%emt 0:00:02] Hoping for ...Qh1.} 59. Rg5 {[%emt 0:00:40]} Qh1 {[%emt 0:00:18] ( -> ...h5)} 60. Re5 {[%emt 0:00:57]} h5 {[%emt 0:00:01]} 61. Rg5 {[%emt 0:00:53]} h4+ {[%emt 0:00:12]} 62. Kg4 {[%emt 0:00:05]} h3 {[%emt 0:00:04]} 63. Rh5 {[%emt 0:00:57]} h2 {[%emt 0:00:07]} 64. Kg3 {[%emt 0:00:06]} Qg1+ {[%emt 0:00:05]} 0-1

[Event "15th Chennai GM Open 2025"]
[Site "Chennai"]
[Date "2025.01.03"]
[Round "2.3"]
[White "Iniyan, Pa"]
[Black "Sri Sai Baswanth P"]
[Result "1-0"]
[ECO "B45"]
[WhiteElo "2508"]
[BlackElo "2161"]
[Annotator "TA"]
[PlyCount "77"]
[EventDate "2025.01.02"]
[EventType "swiss"]
[EventCountry "IND"]
[SourceTitle "playchess.com"]
[Source "ChessBase"]
[SourceQuality "1"]
[TimeControl "5400+30"]

{[%evp 11,77,27,29,25,38,21,22,26,29,34,30,25,48,22,22,29,27,30,25,36,31,21,33,10,0,22,53,-52,-60,-80,-74,-87,-78,-78,-78,-91,-46,-45,-16,-13,-22,-27,0,-22,-27,-31,-18,-43,0,0,0,0,426,425,427,425,406,341,599,614,631,639,693,683,747,720,700,672]} 1. e4 {[%emt 0:07:13]} c5 {[%emt 0:00:43]} 2. Nf3 {[%emt 0:00:25][%cal Bg1f3,Bf3d4,Bd4b5,Bb5d6][%mdl 32]} e6 {[%emt 0:00:19]} 3. d4 {[%emt 0:00:10]} cxd4 {[%emt 0:00:09]} 4. Nxd4 {[%emt 0:00:05]} Nf6 {[%emt 0:00:05]} 5. Nc3 {[%emt 0:00:08]} Nc6 {[%emt 0:00:09]} 6. Ndb5 {[%emt 0:00:08]} Bc5 {[%emt 0:00:56]} 7. Nd6+ {[%emt 0:00:12]} Ke7 {[%emt 0:00:05]} 8. Bf4 {[%emt 0:00:08]} e5 $1 {[%emt 0:00:07]} 9. Nf5+ {[%emt 0:00:05]} Kf8 {[%emt 0:00:04]} 10. Bg5 {[%emt 0:00:10]} d6 {[%emt 0:00:07]} 11. Bc4 {[%emt 0:00:40]} Be6 {[%emt 0:00:46]} 12. Bb3 {[%emt 0:00:25]} h6 {[%emt 0:00:16]} 13. Bxf6 {[%emt 0:00:08]} Qxf6 {[%emt 0:00:08]} 14. Ne3 {[%emt 0:00:06]} g6 {[%emt 0:00:15]} 15. Qd2 {[%emt 0:00:10]} Kg7 {[%emt 0:00:12]} 16. O-O-O {[%emt 0:00:10]} Rab8 {[%emt 0:01:21]} 17. Rhf1 {[%emt 0:05:47]} b5 {[%emt 0:01:07]} 18. Kb1 {[%emt 0:05:09][%cal Of2f4]} Qd8 {[%emt 0:02:01]} 19. g3 {[%emt 0:10:25]} (19. f4 $14) 19... Bh3 $15 {[%emt 0:22:13]} 20. Rg1 {[%emt 0:00:36]} Nd4 {[%emt 0:04:41]} 21. Qd3 {[%emt 0:02:58]} h5 $1 {[%emt 0:16:10]} 22. f4 {[%emt 0:06:31] [#]} a5 $1 {[%emt 0:04:58]} 23. Bd5 {[%emt 0:02:43]} Qb6 {[%emt 0:10:06][%cal Od4c2]} 24. Rge1 {[%emt 0:00:12]} Bg4 {[%emt 0:10:00]} 25. Nxg4 {[%emt 0:01:50]} hxg4 {[%emt 0:02:20]} 26. Rh1 {[%emt 0:00:02]} (26. f5 {is interesting.} Rxh2 27. fxg6 Kxg6 28. Rf1) 26... Rh3 {[%emt 0:04:12]} 27. Rdf1 {[%emt 0:04:17]} (27. f5 $5) 27... Nf3 {[%emt 0:00:53]} 28. Rxf3 {[%emt 0:00:17]} gxf3 {[%emt 0:00:08]} 29. Qxf3 {[%emt 0:00:06]} Qa7 {[%emt 0:03:32]} 30. fxe5 {[%emt 0:05:45]} dxe5 {[%emt 0:03:45] Threatens to win with ...b4.} 31. Rf1 {[%emt 0:00:05] Qg4 would now be deadly.} Qe7 $2 {[%emt 0:10:17][%mdl 8192] [#]} (31... Rxh2 $11 32. Qf6+ (32. Qxf7+ $2 Qxf7 33. Rxf7+ Kh6 $19) 32... Kh6 33. Qxe5 (33. Qxf7 $2 Rf8 $19) (33. Bxf7 Qb6 $17) 33... Bd4 34. Qf4+ g5 35. Qd6+ (35. Qxf7 $2 Qxf7 36. Bxf7 Rf8 $19) 35... Kg7) 32. Qg4 $1 $18 {[%emt 0:01:33]} (32. Bxf7 $2 Rf8 (32... Rxh2 33. Nd5 $11) 33. Qg2 Rhh8 $19) (32. Qxf7+ Qxf7 33. Rxf7+ Kh6 $19) 32... Rxh2 {[%emt 0:00:17]} 33. Rxf7+ {[%emt 0:00:07]} (33. Bxf7 Qd6 34. Bd5 b4 $19 (34... Rf8 $2 35. Rd1 $19)) 33... Qxf7 {[%emt 0:00:17]} 34. Bxf7 {[%emt 0:00:06]} Rh1+ $2 {[%emt 0:00:23]} (34... Kxf7 {was called for.} 35. Qd7+ Be7 36. Qd5+ (36. Nxb5 $2 {gets mated.} Rh1+) 36... Kf6) 35. Nd1 {[%emt 0:00:07]} Rb6 {[%emt 0:01:48] [#]} 36. c3 $1 {[%emt 0:01:32]} a4 {[%emt 0:00:33]} (36... Rd6 37. Bd5) 37. b4 {[%emt 0:01:23]} Bf8 {[%emt 0:00:58]} 38. Bd5 {[%emt 0:01:38]} Rf6 {[%emt 0:00:19]} 39. Kc2 {[%emt 0:00:36]} 1-0

[Event "15th Chennai GM Open 2025"]
[Site "Chennai"]
[Date "2025.01.03"]
[Round "2.4"]
[White "Buscara, Sevan"]
[Black "Shyaam Nikhil P"]
[Result "1-0"]
[ECO "E12"]
[WhiteElo "2185"]
[BlackElo "2449"]
[Annotator "TA"]
[PlyCount "65"]
[EventDate "2025.01.02"]
[EventType "swiss"]
[EventCountry "IND"]
[SourceTitle "playchess.com"]
[Source "ChessBase"]
[SourceQuality "1"]
[TimeControl "5400+30"]

{[%evp 23,65,23,33,16,26,0,0,0,29,11,27,26,30,21,19,0,3,-58,-54,-135,-38,-66,-45,-54,-45,-64,-93,-105,265,257,251,195,616,612,606,581,543,439,518,452,447,412,1187,1156]} 1. d4 {[%emt 0:00:40]} Nf6 {[%emt 0:00:24]} 2. c4 {[%emt 0:00:56]} e6 {[%emt 0:01:38]} 3. Nf3 {[%emt 0:01:25]} b6 {[%emt 0:04:21]} 4. a3 {[%emt 0:00:59]} Bb7 {[%emt 0:03:08]} 5. Nc3 {[%emt 0:00:33]} d5 {[%emt 0:01:13]} 6. Qc2 {[%emt 0:01:18]} Be7 {[%emt 0:03:19]} 7. cxd5 {[%emt 0:01:16]} Nxd5 {[%emt 0:01:03]} 8. e4 {[%emt 0:00:51]} Nxc3 {[%emt 0:01:09]} 9. bxc3 {[%emt 0:00:08]} Nd7 {[%emt 0:01:14]} 10. Bd3 {[%emt 0:02:13]} c5 {[%emt 0:00:34]} 11. O-O {[%emt 0:03:00]} Qc7 {[%emt 0:01:45]} 12. Qe2 {[%emt 0:05:03]} O-O {[%emt 0:00:58]} 13. Bd2 {[%emt 0:10:30]} Rfd8 {[%emt 0:05:18]} 14. h4 {[%emt 0:04:33]} Rac8 {[%emt 0:05:21]} 15. a4 {[%emt 0:05:10][%cal Ba3a4,Ba4a5][%mdl 32]} e5 {[%emt 0:09:09]} 16. Rfc1 {[%emt 0:08:17]} h6 {[%emt 0:13:28] [#]} 17. a5 $1 {[%emt 0:06:12]} c4 {[%emt 0:13:26]} 18. Bc2 {[%emt 0:04:35]} b5 {[%emt 0:03:16]} 19. Be3 {[%emt 0:02:54]} a6 {[%emt 0:04:09]} 20. h5 {[%emt 0:07:04]} (20. Rd1 $11) 20... Re8 $1 $15 {[%emt 0:08:04]} 21. Nh2 {[%emt 0:10:11]} ({White should try} 21. Re1 $15) 21... Bf8 {[%emt 0:03:29]} ({Black should play} 21... exd4 $17 22. cxd4 Bxe4 23. Bxe4 Bd6) 22. d5 {[%emt 0:07:16] [#]} f5 $1 {[%emt 0:00:46]} 23. exf5 {[%emt 0:00:43][%cal Be4f5,Bf5f6,Bf6g7][%mdl 32]} Nf6 $1 {[%emt 0:00:19]} (23... Bxd5 24. Ng4 $11) 24. Ng4 {[%emt 0:02:37]} Nxd5 {[%emt 0:00:31]} 25. f6 {[%emt 0:01:54]} Nf4 $2 {[%emt 0:04:18][%mdl 8192] [#]} ({Of course not} 25... gxf6 $6 26. Be4 (26. Nxh6+ Kh8 $14) 26... Qf7 27. Bg6 $14 (27. Bxh6 f5 $11) (27. Nxh6+ Bxh6 28. Bxh6 f5 $11)) (25... Nxf6 26. Nxf6+ gxf6 27. Qg4+ Kh8 28. Bg6 $16) (25... Nxc3 $17 {keeps the pressure on.} 26. Nxh6+ Kh8 (26... gxh6 27. Qg4+ Kh8 28. Bf5 $15)) 26. Nxh6+ $1 {[%emt 0:02:01][%mdl 512]} gxh6 {[%emt 0:00:52]} (26... Kh8 27. Qg4) 27. Qg4+ {[%emt 0:00:33]} Bg7 $2 {[%emt 0:01:04]} (27... Kh8) 28. Bxf4 $18 {[%emt 0:02:31]} (28. fxg7 Qxg7 29. Qxg7+ Kxg7 $16) 28... exf4 {[%emt 0:00:07]} 29. Rd1 {[%emt 0:02:29][%cal Od1d7,Bc1d1,Bd1d6,Bd6d8][%mdl 32] Rd7! is the strong threat.} ({Less strong is} 29. fxg7 Qxg7 30. Bg6 Be4 $16) 29... Qf7 {[%emt 0:04:26]} 30. fxg7 {[%emt 0:00:47]} Rc7 {[%emt 0:01:32]} 31. Rd6 {[%emt 0:00:43]} Bc8 {[%emt 0:00:05]} 32. Qh4 {[%emt 0:02:14]} Re6 {[%emt 0:02:25]} (32... Bf5 $142) 33. Rd8+ {[%emt 0:01:32]} 1-0

[Event "15th Chennai GM Open 2025"]
[Site "Chennai"]
[Date "2025.01.03"]
[Round "2.5"]
[White "Rios Gomez, Cristhian Camilo"]
[Black "Gawai Siddhant"]
[Result "1/2-1/2"]
[ECO "A13"]
[WhiteElo "2435"]
[BlackElo "2154"]
[Annotator "TA"]
[PlyCount "69"]
[EventDate "2025.01.02"]
[EventType "swiss"]
[EventCountry "IND"]
[SourceTitle "playchess.com"]
[Source "ChessBase"]
[SourceQuality "1"]
[TimeControl "5400+30"]

{[%evp 9,69,11,36,19,17,12,22,24,20,9,50,50,51,47,42,38,49,51,64,65,87,80,77,99,94,85,99,87,80,81,103,93,100,94,95,95,89,97,97,90,91,99,93,91,94,37,65,0,0,0,0,0,0,0,0,0,0,0,0,0,0,-41]} 1. Nf3 {[%emt 0:03:17]} Nf6 {[%emt 0:00:04]} 2. c4 {[%emt 0:00:05]} e6 {[%emt 0:00:08]} 3. g3 {[%emt 0:00:06]} d5 {[%emt 0:00:10]} 4. Bg2 {[%emt 0:00:04]} d4 {[%emt 0:00:26]} 5. O-O {[%emt 0:00:13]} Be7 {[%emt 0:00:21]} 6. e3 {[%emt 0:02:55]} c5 {[%emt 0:00:13]} 7. exd4 {[%emt 0:02:26]} cxd4 {[%emt 0:00:04]} 8. d3 {[%emt 0:00:13][%cal Ob2b4]} Nc6 {[%emt 0:00:43]} 9. Bg5 {[%emt 0:00:11]} Nd7 {[%emt 0:08:58]} 10. Bxe7 {[%emt 0:02:40]} Qxe7 {[%emt 0:00:20]} 11. Na3 {[%emt 0:01:47]} O-O {[%emt 0:08:15]} 12. Nc2 {[%emt 0:03:04]} Qd6 {[%emt 0:05:48]} 13. a3 {[%emt 0:07:56][%cal Ba2a3,Ba3b4,Bb4b5][%mdl 32]} a5 {[%emt 0:01:09] [#]} 14. b4 $1 {[%emt 0:00:07]} axb4 {[%emt 0:03:23]} (14... e5 15. Re1) 15. axb4 {[%emt 0:00:20]} Rxa1 {[%emt 0:00:10]} 16. Qxa1 {[%emt 0:00:07]} e5 {[%emt 0:05:27][%cal Ob7b6]} 17. c5 {[%emt 0:07:27]} Qc7 {[%emt 0:02:04]} 18. Nd2 {[%emt 0:15:56]} b6 {[%emt 0:08:33]} 19. b5 {[%emt 0:01:37]} Na7 {[%emt 0:00:08]} 20. c6 {[%emt 0:00:07] White is more active.} Nc5 {[%emt 0:00:07] [#]} 21. Nb4 $1 {[%emt 0:08:30]} Nxb5 {[%emt 0:02:40]} 22. Nd5 {[%emt 0:01:03]} Qd8 {[%emt 0:01:16][%cal Oc8e6]} 23. Rb1 {[%emt 0:00:06]} Be6 {[%emt 0:15:41]} 24. Rxb5 {[%emt 0:01:18]} Bxd5 {[%emt 0:00:04]} 25. Bxd5 {[%emt 0:00:09]} Qxd5 {[%emt 0:00:07]} 26. Rxb6 {[%emt 0:00:07] And now Qa5 would win.} Ne6 {[%emt 0:11:16] [#]} (26... Nxd3 27. Qb1 e4 28. c7 $16) 27. Qa3 {[%emt 0:03:30]} ({White should try} 27. Qa6 $1 $16) 27... h6 $14 {[%emt 0:10:21]} 28. Ne4 {[%emt 0:02:42]} (28. h4 $1 $14) 28... f5 $11 {[%emt 0:01:49]} 29. Qd6 {[%emt 0:01:44]} Rd8 $1 {[%emt 0:00:08]} 30. c7 {[%emt 0:08:06]} Rxd6 {[%emt 0:00:45]} 31. c8=Q+ {[%emt 0:00:09]} Rd8 {[%emt 0:00:01]} 32. Qxe6+ {[%emt 0:00:06]} Qxe6 {[%emt 0:00:03]} 33. Rxe6 {[%emt 0:00:07]} fxe4 {[%emt 0:00:04]} 34. Rxe5 {[%emt 0:00:07]} (34. dxe4 $2 {is the wrong capture.} d3 35. Rb6 d2 $19) 34... exd3 {[%emt 0:00:30] ( -> ...d2)} 35. Re1 {[%emt 0:00:06]} 1/2-1/2